[Event "10th Cesme Open-A 2024"]
[Site "Cesme"]
[Date "2024.06.25"]
[Round "4"]
[White "Eke, Salih"]
[Black "Haznedaroglu, Kivanc"]
[Result "1/2-1/2"]
[ECO "A70"]
[WhiteElo "2251"]
[BlackElo "2359"]
[Annotator "RC"]
[PlyCount "73"]
[EventDate "2024.06.23"]
[EventType "swiss"]
[EventCountry "TUR"]
[SourceTitle "playchess.com"]
[Source "ChessBase"]
[SourceQuality "1"]
[TimeControl "5400+30"]

1. d4 {[%emt 0:01:00]} Nf6 {[%emt 0:01:00]} 2. c4 {[%emt 0:00:30]} e6 {[%emt 0:00:30]} 3. Nf3 {[%emt 0:00:30]} c5 {[%emt 0:00:00]} 4. d5 {[%emt 0:00:00]} exd5 {[%emt 0:00:00]} 5. cxd5 {[%emt 0:00:00]} d6 {[%emt 0:00:00]} 6. Nc3 {[%emt 0:00:30]} g6 {[%emt 0:00:00]} 7. e4 {[%emt 0:02:30]} Bg7 {[%emt 0:00:30]} 8. h3 O-O 9. Bd3 {[%emt 0:04:00]} a6 {[%emt 0:02:00]} 10. a4 {[%emt 0:00:30]} Re8 {[%emt 0:00:30]} 11. O-O {[%emt 0:00:00]} Nbd7 {[%emt 0:00:00]} 12. Bf4 {[%emt 0:01:00]} Qc7 {[%emt 0:04:00]} 13. Re1 {[%emt 0:01:30]} Rb8 {[%emt 0:00:30]} 14. Bf1 {[%emt 0:03:30]} Nh5 {[%emt 0:04:30]} 15. Bh2 {[%emt 0:05:30]} Ne5 {[%emt 0:00:30]} 16. g4 {[%emt 0:03:30]} Nxf3+ {[%emt 0:01:30]} 17. Qxf3 {[%emt 0:00:30]} Nf6 {[%emt 0:00:00]} 18. Qf4 {[%emt 0:00:30]} Re5 {[%emt 0:02:00]} 19. Qd2 {[%emt 0:01:30]} Re8 {[%emt 0:00:30]} 20. e5 {[%emt 0:05:30]} dxe5 {[%emt 0:00:30]} 21. d6 {[%emt 0:00:00]} Qd8 {[%emt 0:01:30]} 22. Bxe5 {[%emt 0:05:00]} Be6 {[%emt 0:06:30]} 23. g5 {[%emt 0:05:30]} Nd7 {[%emt 0:01:30]} 24. Bxg7 {[%emt 0:00:30]} Kxg7 {[%emt 0:00:30]} 25. Ne4 {[%emt 0:02:30]} Kg8 {[%emt 0:02:30]} 26. Qf4 {[%emt 0:02:30]} Bf5 {[%emt 0:03:30]} 27. Ng3 {[%emt 0:00:30]} Be6 {[%emt 0:00:00]} 28. a5 {[%emt 0:07:30]} b5 {[%emt 0:03:00]} 29. axb6 {[%emt 0:01:30]} Rxb6 {[%emt 0:00:30]} 30. Rxa6 {[%emt 0:02:30]} Rxa6 {[%emt 0:00:00]} 31. Bxa6 {[%emt 0:00:00]} Qb6 {[%emt 0:00:00]} 32. Bc4 {[%emt 0:05:00]} Qb4 {[%emt 0:01:30]} 33. Re4 {[%emt 0:00:30]} Qxb2 {[%emt 0:00:00]} 34. Bxe6 {[%emt 0:04:30]} Rxe6 {[%emt 0:00:00]} 35. Rxe6 {[%emt 0:01:30]} fxe6 {[%emt 0:00:00]} 36. Ne4 {[%emt 0:01:30]} Kg7 {[%emt 0:00:00]} 37. Nf6 {[%emt 0:06:30]} 1/2-1/2

[Event "10th Cesme Open-A 2024"]
[Site "Cesme"]
[Date "2024.06.25"]
[Round "4"]
[White "Ince, Taylan Ruzgar"]
[Black "Demirtas, Alper"]
[Result "1-0"]
[ECO "E09"]
[WhiteElo "2243"]
[BlackElo "2057"]
[Annotator "RC"]
[PlyCount "54"]
[EventDate "2024.06.23"]
[EventType "swiss"]
[EventCountry "TUR"]
[SourceTitle "playchess.com"]
[Source "ChessBase"]
[SourceQuality "1"]
[TimeControl "5400+30"]

1. Nf3 {[%emt 0:01:00]} Nf6 {[%emt 0:01:00]} 2. g3 {[%emt 0:00:30]} d5 {[%emt 0:01:30]} 3. Bg2 {[%emt 0:01:30]} e6 {[%emt 0:02:30]} 4. O-O {[%emt 0:00:30]} Be7 {[%emt 0:00:00]} 5. d4 {[%emt 0:00:30]} O-O {[%emt 0:01:00]} 6. c4 {[%emt 0:00:00]} c6 {[%emt 0:00:30]} 7. b3 {[%emt 0:02:00]} b6 {[%emt 0:00:30]} 8. Nc3 {[%emt 0:01:30]} Nbd7 {[%emt 0:01:30]} 9. Bb2 {[%emt 0:11:30]} Bb7 {[%emt 0:08:30]} 10. Qd3 {[%emt 0:04:30]} Rc8 {[%emt 0:02:30]} 11. e4 {[%emt 0:12:30]} dxe4 {[%emt 0:10:30]} 12. Nxe4 {[%emt 0:00:30]} Nxe4 {[%emt 0:03:30]} 13. Qxe4 {[%emt 0:00:00]} Nf6 {[%emt 0:00:30]} 14. Qe2 {[%emt 0:00:00]} c5 {[%emt 0:00:30]} 15. Rad1 {[%emt 0:01:30]} Qc7 {[%emt 0:03:30]} 16. dxc5 {[%emt 0:01:30]} bxc5 {[%emt 0:01:30]} 17. Ne5 {[%emt 0:01:30]} Bxg2 {[%emt 0:04:30]} 18. Kxg2 {[%emt 0:00:30]} Rfd8 {[%emt 0:03:30]} 19. Qf3 {[%emt 0:02:30]} Bd6 {[%emt 0:13:30]} 20. Rfe1 {[%emt 0:02:30]} Ne8 {[%emt 0:03:30]} 21. Re2 {[%emt 0:10:30]} Bxe5 {[%emt 0:12:30]} 22. Bxe5 {[%emt 0:00:30]} Qa5 {[%emt 0:01:30]} 23. Bc3 {[%emt 0:01:30]} Qc7 {[%emt 0:03:30]} 24. Red2 {[%emt 0:01:30]} Rxd2 {[%emt 0:01:57]} 25. Rxd2 {[%emt 0:00:00]} Qe7 {[%emt 0:03:51]} 26. Qd3 {[%emt 0:09:00]} f6 {[%emt 0:01:52]} 27. Qd7 {[%emt 0:02:30]} Rc7 {[%emt 0:01:49]} 1-0

[Event "10th Cesme Open-A 2024"]
[Site "Cesme"]
[Date "2024.06.25"]
[Round "4"]
[White "Caputcuoglu, Zeki Berke"]
[Black "Yildiz, Serdar Murat"]
[Result "0-1"]
[ECO "E11"]
[WhiteElo "2239"]
[BlackElo "2026"]
[Annotator "RC"]
[PlyCount "58"]
[EventDate "2024.06.23"]
[EventType "swiss"]
[EventCountry "TUR"]
[SourceTitle "playchess.com"]
[Source "ChessBase"]
[SourceQuality "1"]
[TimeControl "5400+30"]

1. Nf3 {[%emt 0:01:00]} Nf6 {[%emt 0:01:00]} 2. c4 {[%emt 0:00:00]} e6 {[%emt 0:00:00]} 3. d4 {[%emt 0:00:00]} Bb4+ {[%emt 0:00:00]} 4. Nbd2 {[%emt 0:00:30]} a5 {[%emt 0:00:30]} 5. a3 {[%emt 0:00:30]} Be7 {[%emt 0:00:00]} 6. e4 {[%emt 0:03:30]} d5 {[%emt 0:00:00]} 7. Bd3 {[%emt 0:02:30]} c5 {[%emt 0:01:30]} 8. e5 {[%emt 0:04:30]} Nfd7 {[%emt 0:00:30]} 9. cxd5 {[%emt 0:04:30]} exd5 {[%emt 0:00:30]} 10. Qe2 {[%emt 0:00:30]} Nc6 {[%emt 0:00:30]} 11. dxc5 {[%emt 0:00:30]} Nxc5 {[%emt 0:01:30]} 12. Bc2 {[%emt 0:06:30]} b6 {[%emt 0:12:30]} 13. Nb3 {[%emt 0:01:30]} Ba6 {[%emt 0:01:30]} 14. Qd1 {[%emt 0:00:30]} O-O {[%emt 0:09:30]} 15. Nbd4 {[%emt 0:02:30]} Qc7 {[%emt 0:08:30]} 16. Nxc6 {[%emt 0:04:30]} Qxc6 {[%emt 0:00:30]} 17. Nd4 {[%emt 0:00:30]} Qc7 {[%emt 0:00:00]} 18. f4 {[%emt 0:01:30]} Rae8 {[%emt 0:19:00]} 19. Be3 {[%emt 0:05:30]} f6 {[%emt 0:07:30]} 20. Qh5 {[%emt 0:02:30]} Bd3 {[%emt 0:04:30]} 21. Ne6 {[%emt 0:08:30]} Nxe6 {[%emt 0:10:30]} 22. Bxd3 {[%emt 0:00:30]} g6 {[%emt 0:00:00]} 23. Qh3 {[%emt 0:04:30]} Bc5 {[%emt 0:03:25]} 24. Bb5 {[%emt 0:12:30]} Bxe3 {[%emt 0:05:14]} 25. Qxe3 {[%emt 0:01:30]} Nxf4 {[%emt 0:00:31]} 26. O-O {[%emt 0:01:30]} Rxe5 {[%emt 0:00:20]} 27. Qxf4 {[%emt 0:01:30]} Qc5+ {[%emt 0:00:30]} 28. Kh1 {[%emt 0:00:30]} Qxb5 {[%emt 0:00:30]} 29. Rac1 {[%emt 0:00:00]} Rf5 {[%emt 0:00:00]} 0-1

[Event "10th Cesme Open-A 2024"]
[Site "Cesme"]
[Date "2024.06.25"]
[Round "4"]
[White "Ozcan, Kaan"]
[Black "Ozsakallioglu, Okan"]
[Result "1/2-1/2"]
[ECO "D19"]
[WhiteElo "2227"]
[BlackElo "2402"]
[Annotator "RC"]
[PlyCount "47"]
[EventDate "2024.06.23"]
[EventType "swiss"]
[EventCountry "TUR"]
[SourceTitle "playchess.com"]
[Source "ChessBase"]
[SourceQuality "1"]
[TimeControl "5400+30"]

1. d4 {[%emt 0:01:00]} d5 {[%emt 0:07:00]} 2. c4 {[%emt 0:00:30]} c6 {[%emt 0:00:30]} 3. Nc3 {[%emt 0:00:00]} Nf6 {[%emt 0:00:30]} 4. Nf3 {[%emt 0:00:00]} dxc4 {[%emt 0:00:00]} 5. a4 {[%emt 0:00:30]} Bf5 {[%emt 0:00:00]} 6. e3 {[%emt 0:00:00]} e6 {[%emt 0:00:30]} 7. Bxc4 {[%emt 0:00:00]} Bb4 {[%emt 0:00:00]} 8. O-O {[%emt 0:00:30]} O-O {[%emt 0:00:00]} 9. Qe2 {[%emt 0:00:30]} Bg6 {[%emt 0:00:00]} 10. Ne5 {[%emt 0:00:30]} Nbd7 {[%emt 0:04:00]} 11. Nxg6 {[%emt 0:00:30]} hxg6 {[%emt 0:00:00]} 12. Rd1 {[%emt 0:00:00]} Qe7 {[%emt 0:01:00]} 13. e4 {[%emt 0:01:00]} e5 {[%emt 0:00:30]} 14. d5 {[%emt 0:00:00]} Nb6 {[%emt 0:01:30]} 15. Bb3 {[%emt 0:00:00]} cxd5 {[%emt 0:00:30]} 16. a5 {[%emt 0:01:30]} d4 {[%emt 0:01:30]} 17. axb6 {[%emt 0:00:30]} dxc3 {[%emt 0:00:30]} 18. bxc3 {[%emt 0:00:00]} Bxc3 {[%emt 0:04:30]} 19. Rxa7 {[%emt 0:05:00]} Rad8 {[%emt 0:04:30]} 20. Bg5 {[%emt 0:16:30]} Bd4 {[%emt 0:27:30]} 21. Bd5 {[%emt 0:10:30]} Rd7 {[%emt 0:01:30]} 22. Rb1 {[%emt 0:02:30]} Qd6 {[%emt 0:03:30]} 23. Bxf6 {[%emt 0:12:30]} Qxf6 {[%emt 0:00:30]} 24. Rxb7 {[%emt 0:03:30]} 1/2-1/2

[Event "10th Cesme Open-A 2024"]
[Site "Cesme"]
[Date "2024.06.25"]
[Round "4"]
[White "Kirilmaz, Emre"]
[Black "Portakalci, Yusuf"]
[Result "1-0"]
[ECO "D36"]
[WhiteElo "2195"]
[BlackElo "2034"]
[Annotator "RC"]
[PlyCount "62"]
[EventDate "2024.06.23"]
[EventType "swiss"]
[EventCountry "TUR"]
[SourceTitle "playchess.com"]
[Source "ChessBase"]
[SourceQuality "1"]
[TimeControl "5400+30"]

1. d4 {[%emt 0:01:00]} d5 {[%emt 0:01:00]} 2. c4 {[%emt 0:02:30]} e6 {[%emt 0:01:30]} 3. Nc3 {[%emt 0:00:30]} Nf6 {[%emt 0:00:30]} 4. cxd5 {[%emt 0:00:30]} exd5 {[%emt 0:00:00]} 5. Bg5 {[%emt 0:00:00]} c6 {[%emt 0:00:00]} 6. e3 {[%emt 0:03:00]} Nbd7 {[%emt 0:00:30]} 7. Bd3 {[%emt 0:00:30]} Be7 {[%emt 0:00:30]} 8. Qc2 {[%emt 0:02:30]} Nf8 {[%emt 0:03:30]} 9. Nf3 {[%emt 0:00:30]} h6 {[%emt 0:12:30]} 10. Bh4 {[%emt 0:03:30]} Ne6 {[%emt 0:02:30]} 11. O-O-O {[%emt 0:03:30]} Qc7 {[%emt 0:04:30]} 12. Kb1 {[%emt 0:04:30]} Bd7 {[%emt 0:04:30]} 13. Ne5 {[%emt 0:00:30]} Rf8 {[%emt 0:07:30]} 14. Rc1 {[%emt 0:14:30]} O-O-O {[%emt 0:12:30]} 15. Bf5 {[%emt 0:11:30]} Qa5 {[%emt 0:17:30]} 16. Ne2 {[%emt 0:08:30]} Kb8 {[%emt 0:18:01]} 17. Nxd7+ {[%emt 0:03:30]} Rxd7 {[%emt 0:00:20]} 18. Nf4 {[%emt 0:03:30]} Ne4 {[%emt 0:07:43]} 19. Bxe6 {[%emt 0:11:30]} fxe6 {[%emt 0:00:11]} 20. Bxe7 {[%emt 0:00:30]} Rxe7 {[%emt 0:00:09]} 21. f3 {[%emt 0:00:00]} Nd2+ {[%emt 0:03:53]} 22. Ka1 {[%emt 0:00:00]} Rf6 {[%emt 0:00:32]} 23. b3 {[%emt 0:11:03]} e5 {[%emt 0:00:43]} 24. dxe5 {[%emt 0:00:42]} Rxe5 {[%emt 0:00:06]} 25. b4 {[%emt 0:00:00]} Qa3 {[%emt 0:01:31]} 26. Qxd2 {[%emt 0:00:15]} Rxe3 {[%emt 0:00:01]} 27. Rhe1 {[%emt 0:01:00]} Rxe1 {[%emt 0:00:23]} 28. Rxe1 {[%emt 0:00:30]} a6 {[%emt 0:00:07]} 29. Nd3 {[%emt 0:01:07]} Rf8 {[%emt 0:00:40]} 30. Nc5 {[%emt 0:00:19]} Ka8 {[%emt 0:00:24]} 31. Re3 {[%emt 0:00:09]} Rh8 {[%emt 0:00:38]} 1-0

[Event "10th Cesme Open-A 2024"]
[Site "Cesme"]
[Date "2024.06.25"]
[Round "4"]
[White "Jafarli, Babak"]
[Black "Cakiroglu, Metin"]
[Result "1-0"]
[ECO "B30"]
[WhiteElo "2192"]
[BlackElo "2039"]
[Annotator "RC"]
[PlyCount "51"]
[EventDate "2024.06.23"]
[EventType "swiss"]
[EventCountry "TUR"]
[SourceTitle "playchess.com"]
[Source "ChessBase"]
[SourceQuality "1"]
[TimeControl "5400+30"]

1. e4 {[%emt 0:01:00]} c5 {[%emt 0:18:00]} 2. Nf3 {[%emt 0:00:30]} Nc6 {[%emt 0:00:00]} 3. Bb5 {[%emt 0:00:00]} Qb6 {[%emt 0:00:00]} 4. a4 {[%emt 0:00:00]} Nd4 {[%emt 0:00:30]} 5. Nxd4 {[%emt 0:00:30]} cxd4 {[%emt 0:04:30]} 6. O-O {[%emt 0:00:00]} g6 {[%emt 0:01:30]} 7. Qe2 {[%emt 0:00:00]} Bg7 {[%emt 0:00:30]} 8. a5 {[%emt 0:00:30]} Qc7 {[%emt 0:00:30]} 9. d3 {[%emt 0:00:00]} Nf6 {[%emt 0:00:30]} 10. f4 {[%emt 0:02:00]} O-O {[%emt 0:00:30]} 11. Bc4 {[%emt 0:08:30]} d6 {[%emt 0:03:30]} 12. Nd2 {[%emt 0:01:30]} Rb8 {[%emt 0:09:30]} 13. Nf3 {[%emt 0:03:30]} Bg4 {[%emt 0:04:30]} 14. h3 {[%emt 0:00:30]} Bxf3 {[%emt 0:00:00]} 15. Qxf3 {[%emt 0:00:30]} Nd7 {[%emt 0:00:00]} 16. b4 {[%emt 0:04:30]} b5 {[%emt 0:00:30]} 17. axb6 {[%emt 0:00:30]} axb6 {[%emt 0:11:30]} 18. Bd2 {[%emt 0:03:30]} b5 {[%emt 0:00:30]} 19. Bb3 {[%emt 0:00:00]} Kh8 {[%emt 0:16:30]} 20. f5 {[%emt 0:05:00]} Ne5 {[%emt 0:00:30]} 21. Qe2 {[%emt 0:00:00]} Ra8 {[%emt 0:02:30]} 22. Rac1 {[%emt 0:03:00]} Qb6 {[%emt 0:01:30]} 23. g4 {[%emt 0:00:30]} Nc4 {[%emt 0:05:50]} 24. dxc4 {[%emt 0:01:30]} d3+ {[%emt 0:02:01]} 25. Qe3 {[%emt 0:00:30]} Bd4 {[%emt 0:00:30]} 26. Bc3 {[%emt 0:00:30]} 1-0

[Event "10th Cesme Open-A 2024"]
[Site "Cesme"]
[Date "2024.06.25"]
[Round "4"]
[White "Selbes, Tamer Tarik"]
[Black "Danaci, Ege"]
[Result "1-0"]
[ECO "C00"]
[WhiteElo "2183"]
[BlackElo "2005"]
[Annotator "RC"]
[PlyCount "95"]
[EventDate "2024.06.23"]
[EventType "swiss"]
[EventCountry "TUR"]
[SourceTitle "playchess.com"]
[Source "ChessBase"]
[SourceQuality "1"]
[TimeControl "5400+30"]

1. e4 {[%emt 0:01:00]} c5 {[%emt 0:08:00]} 2. Nf3 {[%emt 0:00:30]} e6 {[%emt 0:00:30]} 3. d3 {[%emt 0:02:30]} Nc6 {[%emt 0:01:30]} 4. g3 {[%emt 0:00:00]} d5 {[%emt 0:01:30]} 5. Qe2 {[%emt 0:00:00]} Nf6 {[%emt 0:00:30]} 6. Bg2 {[%emt 0:00:30]} Be7 {[%emt 0:01:30]} 7. O-O {[%emt 0:00:00]} O-O {[%emt 0:01:30]} 8. e5 {[%emt 0:00:00]} Nd7 {[%emt 0:00:30]} 9. h4 {[%emt 0:00:30]} Qc7 {[%emt 0:05:30]} 10. Bf4 {[%emt 0:00:30]} b5 {[%emt 0:04:30]} 11. Nbd2 {[%emt 0:00:30]} Re8 {[%emt 0:00:30]} 12. Rfe1 {[%emt 0:00:00]} a5 {[%emt 0:02:30]} 13. c3 {[%emt 0:01:00]} Ba6 {[%emt 0:00:30]} 14. Nf1 {[%emt 0:01:30]} a4 {[%emt 0:05:30]} 15. a3 {[%emt 0:02:30]} Qb6 {[%emt 0:03:30]} 16. h5 {[%emt 0:01:30]} b4 {[%emt 0:05:30]} 17. h6 {[%emt 0:00:30]} g6 {[%emt 0:00:30]} 18. Ne3 {[%emt 0:06:30]} bxc3 {[%emt 0:02:30]} 19. bxc3 {[%emt 0:00:00]} Rab8 {[%emt 0:09:30]} 20. Bh3 {[%emt 0:03:00]} Nf8 {[%emt 0:02:30]} 21. Ng5 {[%emt 0:07:30]} Qb2 {[%emt 0:02:30]} 22. Qf3 {[%emt 0:00:30]} Qxc3 {[%emt 0:02:30]} 23. Nxd5 {[%emt 0:09:30]} Qxd3 {[%emt 0:03:30]} 24. Nxe7+ {[%emt 0:01:30]} Nxe7 {[%emt 0:00:00]} 25. Be3 {[%emt 0:00:30]} Nf5 {[%emt 0:01:00]} 26. Bf1 {[%emt 0:03:30]} Qd5 {[%emt 0:04:30]} 27. Bxa6 {[%emt 0:00:00]} Rb3 {[%emt 0:01:30]} 28. Qxd5 {[%emt 0:01:00]} exd5 {[%emt 0:00:30]} 29. Bxc5 {[%emt 0:00:30]} Nd7 {[%emt 0:00:00]} 30. Bd6 {[%emt 0:00:00]} Nxh6 {[%emt 0:00:00]} 31. Rac1 {[%emt 0:01:00]} Nf5 {[%emt 0:03:30]} 32. Rc8 {[%emt 0:00:30]} Rxc8 {[%emt 0:00:30]} 33. Bxc8 {[%emt 0:00:30]} Nb6 {[%emt 0:00:00]} 34. Bxf5 {[%emt 0:01:30]} gxf5 {[%emt 0:00:00]} 35. Rd1 {[%emt 0:02:30]} f4 {[%emt 0:00:00]} 36. gxf4 {[%emt 0:05:30]} h6 {[%emt 0:02:00]} 37. e6 {[%emt 0:00:30]} fxe6 {[%emt 0:00:30]} 38. Nxe6 {[%emt 0:00:00]} Nc4 {[%emt 0:00:00]} 39. Bc5 {[%emt 0:00:00]} Nxa3 {[%emt 0:00:00]} 40. Rxd5 {[%emt 0:00:30]} Nc2 {[%emt 0:00:00]} 41. f5 {[%emt 0:05:30]} a3 {[%emt 0:00:00]} 42. Rd8+ {[%emt 0:00:30]} Kh7 {[%emt 0:00:00]} 43. Rd7+ {[%emt 0:01:30]} Kg8 {[%emt 0:00:00]} 44. Rg7+ {[%emt 0:04:30]} Kh8 {[%emt 0:00:00]} 45. Ra7 {[%emt 0:00:30]} Rf3 {[%emt 0:00:00]} 46. Nd4 {[%emt 0:00:30]} Nxd4 {[%emt 0:01:30]} 47. Bxd4+ {[%emt 0:00:00]} Kg8 {[%emt 0:00:00]} 48. f6 {[%emt 0:00:00]} 1-0

[Event "10th Cesme Open-A 2024"]
[Site "Cesme"]
[Date "2024.06.25"]
[Round "4"]
[White "Ozkan, Ervin"]
[Black "Yurtseven, Melih"]
[Result "0-1"]
[ECO "A45"]
[WhiteElo "2147"]
[BlackElo "2333"]
[Annotator "RC"]
[PlyCount "164"]
[EventDate "2024.06.23"]
[EventType "swiss"]
[EventCountry "TUR"]
[SourceTitle "playchess.com"]
[Source "ChessBase"]
[SourceQuality "1"]
[TimeControl "5400+30"]

1. d4 {[%emt 0:01:00]} Nf6 {[%emt 0:02:00]} 2. Bf4 {[%emt 0:00:30]} b6 {[%emt 0:00:30]} 3. Nc3 {[%emt 0:00:30]} Bb7 {[%emt 0:00:30]} 4. f3 {[%emt 0:00:30]} e6 {[%emt 0:03:30]} 5. e4 {[%emt 0:01:30]} d5 {[%emt 0:01:30]} 6. e5 {[%emt 0:03:30]} Nfd7 {[%emt 0:00:30]} 7. Be3 {[%emt 0:01:30]} c5 {[%emt 0:00:30]} 8. f4 {[%emt 0:00:30]} cxd4 {[%emt 0:01:30]} 9. Bxd4 {[%emt 0:00:30]} Nc6 {[%emt 0:00:00]} 10. Nf3 {[%emt 0:00:30]} Nxd4 {[%emt 0:02:00]} 11. Nxd4 {[%emt 0:00:30]} Bc5 {[%emt 0:01:30]} 12. Bb5 {[%emt 0:02:30]} O-O {[%emt 0:02:30]} 13. O-O {[%emt 0:05:30]} f6 {[%emt 0:05:30]} 14. Bxd7 {[%emt 0:01:30]} Qxd7 {[%emt 0:03:30]} 15. Qd2 {[%emt 0:03:30]} Ba6 {[%emt 0:02:30]} 16. Rfe1 {[%emt 0:03:30]} fxe5 {[%emt 0:00:30]} 17. Rxe5 {[%emt 0:02:30]} Bd6 {[%emt 0:02:30]} 18. Rae1 {[%emt 0:02:30]} Bxe5 {[%emt 0:00:30]} 19. Rxe5 {[%emt 0:00:30]} Qd6 {[%emt 0:00:30]} 20. h3 {[%emt 0:05:30]} Rf6 {[%emt 0:00:00]} 21. Qe3 {[%emt 0:01:30]} Raf8 {[%emt 0:02:00]} 22. g3 {[%emt 0:17:30]} Bc8 {[%emt 0:18:30]} 23. Nd1 {[%emt 0:03:30]} h6 {[%emt 0:01:30]} 24. Nf2 {[%emt 0:05:30]} Qb4 {[%emt 0:02:30]} 25. b3 {[%emt 0:03:30]} Qa3 {[%emt 0:02:30]} 26. Ng4 {[%emt 0:02:30]} R6f7 {[%emt 0:00:30]} 27. Qd3 {[%emt 0:09:30]} Kh8 {[%emt 0:04:30]} 28. Rh5 {[%emt 0:03:13]} Qb2 {[%emt 0:17:30]} 29. Qe3 {[%emt 0:06:32]} Rf5 {[%emt 0:03:30]} 30. Rxf5 {[%emt 0:05:38]} exf5 {[%emt 0:04:24]} 31. Ne5 {[%emt 0:00:08]} Kh7 {[%emt 0:00:00]} 32. Nef3 {[%emt 0:01:19]} Qa3 {[%emt 0:04:18]} 33. h4 {[%emt 0:06:18]} Qxa2 {[%emt 0:03:11]} 34. Qe7 {[%emt 0:02:08]} Kg8 {[%emt 0:00:03]} 35. Qe5 {[%emt 0:00:06]} Qa5 {[%emt 0:03:15]} 36. h5 {[%emt 0:00:30]} Qc5 {[%emt 0:00:00]} 37. Nh4 {[%emt 0:00:27]} Bd7 {[%emt 0:00:17]} 38. b4 {[%emt 0:00:25]} Qxb4 {[%emt 0:02:22]} 39. Qxd5+ {[%emt 0:00:20]} Rf7 {[%emt 0:00:15]} 40. Ng6 {[%emt 0:00:30]} Qc5 {[%emt 0:00:55]} 41. Qa8+ {[%emt 0:00:42]} Bc8 {[%emt 0:00:19]} 42. Kh2 {[%emt 0:00:36]} Rb7 {[%emt 0:05:27]} 43. Kh3 {[%emt 0:00:25]} Qc7 {[%emt 0:01:02]} 44. Ne7+ {[%emt 0:00:27]} Qxe7 {[%emt 0:01:02]} 45. Qxc8+ {[%emt 0:00:02]} Kh7 {[%emt 0:00:33]} 46. Ne6 {[%emt 0:01:08]} g5 {[%emt 0:00:33]} 47. hxg6+ {[%emt 0:00:57]} Kxg6 {[%emt 0:00:02]} 48. Qg8+ {[%emt 0:00:21]} Kf6 {[%emt 0:00:04]} 49. Nd4 {[%emt 0:00:10]} Rd7 {[%emt 0:00:29]} 50. Nf3 {[%emt 0:00:24]} Qg7 {[%emt 0:00:36]} 51. Qe8 {[%emt 0:00:36]} Re7 {[%emt 0:01:05]} 52. Qc6+ {[%emt 0:00:15]} Re6 {[%emt 0:00:00]} 53. Qd5 {[%emt 0:00:39]} Qg4+ {[%emt 0:00:51]} 54. Kg2 {[%emt 0:00:01]} Qg8 {[%emt 0:00:34]} 55. Ne5 {[%emt 0:00:30]} Qe8 {[%emt 0:00:22]} 56. Nd7+ {[%emt 0:00:49]} Kg7 {[%emt 0:00:46]} 57. Qd4+ {[%emt 0:00:56]} Kg6 {[%emt 0:00:18]} 58. Qd5 {[%emt 0:00:13]} Kg7 {[%emt 0:00:59]} 59. Qd4+ {[%emt 0:00:30]} Kh7 {[%emt 0:00:30]} 60. Nf6+ {[%emt 0:00:30]} Rxf6 {[%emt 0:00:30]} 61. Qxf6 {[%emt 0:00:30]} Qd7 {[%emt 0:00:00]} 62. Kh3 {[%emt 0:00:00]} b5 {[%emt 0:00:10]} 63. Kh4 {[%emt 0:00:21]} a5 {[%emt 0:00:20]} 64. g4 {[%emt 0:01:23]} fxg4 {[%emt 0:00:30]} 65. f5 {[%emt 0:00:13]} Qg7 {[%emt 0:00:32]} 66. Qe6 {[%emt 0:00:10]} Qg5+ {[%emt 0:01:45]} 67. Kg3 {[%emt 0:00:04]} h5 {[%emt 0:00:10]} 68. Qf7+ {[%emt 0:00:11]} Kh6 {[%emt 0:00:12]} 69. Qe6+ {[%emt 0:00:30]} Kg7 {[%emt 0:00:07]} 70. Qd7+ {[%emt 0:00:00]} Kf8 {[%emt 0:00:45]} 71. Qc8+ {[%emt 0:00:27]} Kf7 {[%emt 0:00:46]} 72. Qe6+ {[%emt 0:00:02]} Kf8 {[%emt 0:00:19]} 73. Qc8+ {[%emt 0:00:30]} Ke7 {[%emt 0:00:30]} 74. Qe6+ {[%emt 0:00:00]} Kd8 {[%emt 0:00:00]} 75. Qd6+ {[%emt 0:00:03]} Ke8 {[%emt 0:00:28]} 76. Qe6+ {[%emt 0:00:09]} Qe7 {[%emt 0:00:07]} 77. Qc6+ {[%emt 0:00:52]} Qd7 {[%emt 0:00:43]} 78. Qg6+ {[%emt 0:00:45]} Qf7 {[%emt 0:00:01]} 79. Qc6+ {[%emt 0:00:21]} Kf8 {[%emt 0:00:02]} 80. Qxb5 {[%emt 0:00:54]} a4 {[%emt 0:00:14]} 81. Kh4 {[%emt 0:00:50]} Qe7+ {[%emt 0:00:22]} 82. Kxh5 {[%emt 0:00:26]} Qe8+ {[%emt 0:01:21]} 0-1

[Event "10th Cesme Open-A 2024"]
[Site "Cesme"]
[Date "2024.06.25"]
[Round "4"]
[White "Isgenderova, Hayale"]
[Black "Gunduz, Umut Erdem"]
[Result "1/2-1/2"]
[ECO "B31"]
[WhiteElo "2103"]
[BlackElo "2312"]
[Annotator "RC"]
[PlyCount "39"]
[EventDate "2024.06.23"]
[EventType "swiss"]
[EventCountry "TUR"]
[SourceTitle "playchess.com"]
[Source "ChessBase"]
[SourceQuality "1"]
[TimeControl "5400+30"]

1. e4 {[%emt 0:00:00]} c5 {[%emt 0:01:00]} 2. Nf3 {[%emt 0:00:30]} Nc6 {[%emt 0:00:00]} 3. Bb5 {[%emt 0:00:30]} g6 {[%emt 0:00:00]} 4. O-O {[%emt 0:00:30]} Bg7 {[%emt 0:02:30]} 5. c3 {[%emt 0:07:30]} Nf6 {[%emt 0:05:30]} 6. Re1 {[%emt 0:01:30]} a6 {[%emt 0:04:30]} 7. Bf1 {[%emt 0:01:30]} d6 {[%emt 0:04:30]} 8. h3 {[%emt 0:01:30]} O-O {[%emt 0:07:30]} 9. d4 {[%emt 0:01:30]} cxd4 {[%emt 0:02:30]} 10. cxd4 {[%emt 0:00:30]} d5 {[%emt 0:00:00]} 11. e5 {[%emt 0:01:30]} Ne4 {[%emt 0:04:00]} 12. Nc3 {[%emt 0:08:30]} Bf5 {[%emt 0:04:30]} 13. g4 {[%emt 0:04:30]} Be6 {[%emt 0:02:30]} 14. Bd3 {[%emt 0:05:30]} Nb4 {[%emt 0:04:30]} 15. Bb1 {[%emt 0:04:30]} Rc8 16. Nxe4 dxe4 17. Ng5 {[%emt 0:07:00]} Nd3 {[%emt 0:08:30]} 18. Bxd3 {[%emt 0:01:30]} exd3 {[%emt 0:01:30]} 19. Nxe6 {[%emt 0:00:30]} fxe6 {[%emt 0:00:00]} 20. Qxd3 {[%emt 0:00:30]} 1/2-1/2